bitfinex/quotes_ETHUSD_20241216
["timestamp","ask_amount","ask_price","bid_price","bid_amount"]
[1734333760272,2.13801142,3969.7,3969.4,0.02944521]
[1734333760475,2.13801142,3969.7,3969.0,5.5195]
[1734333760799,2.13801142,3969.7,3969.1,0.02948709]
[1734333761054,2.13801142,3969.7,3969.1,2.54892709]
[1734333761169,2.13801142,3969.7,3969.2,2.51937]
[1734333761378,0.50614616,3970.7,3969.4,5.059]
[1734333761564,0.8079,3971.7,3970.6,2.51849]
[1734333761763,0.8079,3971.7,3970.5,3.0]
[1734333762087,0.8079,3971.7,3970.9,0.8166]
[1734333762263,0.8079,3971.7,3971.0,0.02909662]
[1734333762595,0.8079,3971.7,3971.1,2.51817]
[1734333762797,1.10249114,3971.7,3971.1,2.51817]
[1734333762963,1.10249114,3971.7,3971.2,0.02906872]
[1734333764098,2.13801142,3971.5,3971.2,0.02906872]
[1734333764398,2.13801142,3971.5,3970.9,2.51831]
[1734333764617,2.13801142,3971.5,3971.3,0.02905478]
[1734333764792,2.13801142,3971.5,3971.0,2.51825]
[1734333765399,2.13801142,3971.5,3971.1,0.02845619]
[1734333765895,2.13801142,3971.5,3971.1,2.54662619]
[1734333766123,0.8079,3971.7,3971.1,0.02845619]
[1734333766396,2.13801142,3971.9,3971.4,2.51796]
[1734333766774,2.13801142,3971.9,3971.5,0.02851001]
[1734333767090,2.13801142,3971.9,3971.3,0.802]
[1734333767292,2.13801142,3971.9,3971.5,2.5179]
[1734333767464,2.13801142,3971.9,3971.6,0.0275616]
[1734333768070,2.89311142,3972.3,3971.7,2.51778]
[1734333768273,2.89311142,3972.3,3971.8,2.54524371]
[1734333768483,0.7551,3972.3,3971.8,2.54524371]
[1734333768714,2.89311142,3972.3,3971.8,2.54524371]
[1734333769086,2.13801142,3971.9,3971.8,0.02753371]
[1734333769295,2.13801142,3971.9,3970.3,3.19234613]
[1734333769296,3.10691256,3971.9,3970.8,2.51837]
[1734333769523,3.10691256,3971.9,3970.9,0.02358031]
[1734333769524,2.13801142,3971.5,3970.9,0.02358031]
[1734333769822,0.7551,3971.4,3970.9,0.02358031]
[1734333770038,0.7551,3971.4,3971.0,0.02266372]
[1734333770203,0.28931114,3971.3,3970.5,2.51856]
[1734333770405,0.28931114,3971.3,3970.6,0.02275603]
[1734333771794,0.7551,3971.4,3970.6,0.02275603]
[1734333772024,0.7551,3971.4,3970.6,2.54125603]
[1734333774201,0.7551,3971.4,3970.6,0.02275603]
[1734333774412,0.7551,3971.4,3970.4,5.51863]
[1734333774610,0.7551,3971.4,3970.5,0.02299889]
[1734333774807,0.7551,3971.4,3970.5,2.54156889]
[1734333776022,0.7551,3971.4,3970.6,2.51848]
[1734333776229,0.7551,3971.4,3970.7,0.02296056]
[1734333779313,1.09355862,3971.4,3970.7,0.02296056]
[1734333779748,1.09355862,3971.4,3970.5,3.0]
[1734333779949,1.09355862,3971.4,3970.8,0.02320743]
[1734333780125,1.09355862,3971.4,3970.5,3.0]
[1734333780126,0.7751,3971.3,3970.5,2.51854]
[1734333780752,0.7751,3971.3,3970.6,3.30868532]
[1734333782151,0.7751,3971.3,3970.7,2.51844]
[1734333782458,0.7751,3971.3,3970.8,0.02326006]
[1734333783746,1.11555862,3971.3,3970.8,0.02326006]
[1734333784181,1.11555862,3971.3,3970.5,2.51856]
[1734333784384,1.11555862,3971.3,3970.9,0.02325165]
[1734333784385,0.7751,3971.3,3970.9,0.02325165]
[1734333784554,0.7751,3971.3,3970.5,2.51856]
[1734333784757,0.7751,3971.3,3971.0,0.02323771]
[1734333784982,0.7751,3971.3,3970.3,3.0]
[1734333785481,0.7751,3971.3,3970.4,0.02338401]
[1734333785683,0.7751,3971.3,3970.4,3.02338401]
[1734333785884,1.36734662,3971.3,3970.4,0.02338401]
[1734333787658,1.36734662,3971.3,3970.4,2.54198401]
[1734333788997,0.8287,3972.2,3970.7,0.8202]
[1734333789163,0.8287,3972.2,3971.8,2.51774]
[1734333789365,42.87773164,3973.1,3972.1,2.51755]
[1734333789366,0.8073,3972.7,3972.1,2.51755]
[1734333790473,0.8073,3972.7,3971.9,2.51768]
[1734333790696,0.29453114,3972.6,3971.9,2.51768]
[1734333793908,0.29453114,3972.6,3971.6,3.0]
[1734333794097,0.8073,3972.7,3972.0,2.51761]
[1734333794701,0.8073,3972.7,3972.1,0.02215622]
[1734333794879,0.8073,3972.7,3972.1,2.51755]
[1734333795428,0.8073,3972.7,3971.6,3.0]
[1734333795765,0.8073,3972.7,3971.9,2.51765]
[1734333796224,2.94531142,3972.7,3971.7,2.51779]
[1734333796564,3.23984256,3972.7,3971.7,2.51779]
[1734333800942,2.13801142,3972.3,3971.5,0.7769]
[1734333801233,0.8041,3972.2,3971.3,2.51806]
[1734333801395,0.8041,3972.2,3971.6,0.02223114]
[1734333801723,0.8041,3972.2,3971.7,0.02222763]
[1734333801895,0.8041,3972.2,3971.3,2.51806]
[1734333802212,0.8041,3972.2,3971.4,0.02236333]
[1734333812063,0.7614,3973.0,3971.8,0.55]
[1734333812238,0.7614,3973.0,3972.3,2.51743]
[1734333812554,3.31753921,3973.0,3972.3,2.51743]
[1734333812854,3.31753921,3973.0,3971.8,1.59765316]
[1734333813058,41.8239327,3973.1,3972.2,0.7857]
[1734333813235,41.8239327,3973.1,3972.8,2.51709]
[1734333814259,41.8239327,3973.1,3972.2,4.35080316]
[1734333814431,0.8064,3973.0,3972.2,2.51745]
[1734333814625,0.8064,3973.0,3972.3,0.0223464]
[1734333814825,3.36253921,3973.0,3972.3,0.0223464]
[1734333815240,3.36253921,3973.0,3972.3,2.51737]
[1734333815241,0.8064,3973.0,3972.3,2.51737]
[1734333815644,0.8064,3973.0,3972.4,0.022338]
[1734333816029,0.8064,3973.0,3972.3,2.51737]
[1734333816445,0.8064,3973.0,3972.4,2.51734]
[1734333816629,0.8064,3973.0,3972.0,3.0]
[1734333816844,41.8239327,3973.1,3972.6,2.51722]
[1734333817222,41.8239327,3973.1,3972.7,0.02229735]
[1734333817642,41.8239327,3973.1,3972.6,2.51722]
[1734333818051,41.8239327,3973.1,3972.7,0.02229735]
[1734333818340,41.8239327,3973.1,3972.6,2.51722]
[1734333818548,41.8239327,3973.1,3972.8,0.02228342]
[1734333818717,41.8239327,3973.1,3972.7,0.02229735]
[1734333818920,41.8239327,3973.1,3972.6,2.51722]
[1734333819161,41.8239327,3973.1,3972.7,0.02229735]
[1734333819562,41.8239327,3973.1,3972.5,0.8266]
[1734333819868,41.8239327,3973.1,3972.8,0.02228342]
[1734333820024,41.8239327,3973.1,3972.4,2.51736]
[1734333820360,41.8239327,3973.1,3972.5,0.02232522]
[1734333821187,41.8239327,3973.1,3972.2,0.7598]
[1734333821188,41.8239327,3973.1,3972.6,2.51724]
[1734333821358,41.8239327,3973.1,3973.0,2.51698]
[1734333822251,41.8239327,3973.1,3973.0,2.53923555]
[1734333824687,41.8239327,3973.1,3973.0,6.06698]
[1734333824967,41.8239327,3973.1,3973.0,6.88658]
[1734333828626,41.8239327,3973.1,3973.0,8.39558]
[1734333829266,41.8239327,3973.1,3973.0,6.88658]
[1734333832249,36.7900927,3973.1,3973.0,8.39558]
[1734333832469,36.7900927,3973.1,3973.0,13.39846956]
[1734333832470,28.97455793,3973.1,3973.0,13.39846956]
[1734333832783,26.17999456,3973.1,3973.0,14.52001476]
[1734333832936,21.14615456,3973.1,3973.0,14.52001476]
[1734333833141,19.88769456,3973.1,3973.0,16.61539159]
[1734333833339,19.88769456,3973.1,3973.0,14.52001476]
[1734333834194,19.88769456,3973.1,3973.0,14.64331601]
[1734333834348,19.88769456,3973.1,3973.0,16.2086499]
[1734333835059,19.88769456,3973.1,3973.0,9.65877788]
[1734333835256,19.88769456,3973.1,3973.0,2.08279788]
[1734333835440,19.88769456,3973.1,3973.0,0.8196]
[1734333836273,19.88769456,3973.1,3973.0,6.33658]
[1734333836687,19.88769456,3973.1,3973.0,6.88658]
[1734333837955,19.88769456,3973.1,3973.0,6.06698]
[1734333838140,19.88769456,3973.1,3972.8,0.55]
[1734333838499,19.88769456,3973.1,3972.9,3.0]
[1734333838671,19.88769456,3973.1,3973.0,1.509]
[1734333838866,19.88769456,3973.1,3972.8,0.55]
[1734333839063,19.88769456,3973.1,3972.6,3.0]
[1734333839265,19.88769456,3973.1,3972.4,0.7701]
[1734333839266,0.7555,3973.0,3972.4,3.7701]
[1734333839556,0.7555,3973.0,3971.9,1.81147737]
[1734333839557,0.7555,3973.0,3972.1,3.28765]
[1734333840314,3.07149946,3973.0,3971.8,0.8038]
[1734333840494,3.07149946,3973.0,3972.0,2.51756]
[1734333840706,3.07149946,3973.0,3971.8,0.8038]
[1734333841016,3.07149946,3973.0,3971.8,3.32154]
[1734333841234,0.7708,3972.7,3971.5,1.04362194]
[1734333841524,0.7708,3972.6,3971.4,3.29689]
[1734333841679,0.7708,3972.6,3971.6,2.51785]
[1734333842168,0.7708,3972.6,3971.4,0.7789]
[1734333842523,0.7708,3972.6,3971.7,0.55]
[1734333842859,0.58355424,3972.6,3971.6,0.55]
[1734333843063,0.7933,3972.5,3971.3,0.26248237]
[1734333843305,0.7933,3972.5,3971.4,0.55]
[1734333844201,0.8216,3972.3,3971.3,0.26248237]
[1734333844398,2.13801142,3972.7,3971.3,0.26248237]
[1734333844399,0.8216,3972.2,3971.3,0.26248237]
[1734333844604,0.8216,3972.2,3971.4,0.55]
[1734333844974,0.8216,3972.2,3971.4,3.068]
[1734333845602,0.8216,3972.2,3971.4,0.55]
[1734333845806,0.8216,3972.2,3971.5,0.0236211]
[1734333845969,0.8216,3972.2,3971.5,3.0]
[1734333846175,0.8216,3972.2,3971.6,3.0]
[1734333846363,0.7511,3972.5,3971.7,1.3202]
[1734333846690,0.7511,3972.5,3972.0,3.0]
[1734333847295,0.7511,3972.5,3971.7,1.3202]
[1734333847616,0.7511,3972.5,3972.1,3.0]
[1734333847804,0.7511,3972.5,3971.9,0.55]
[1734333848115,0.7511,3973.0,3972.4,2.51736]
[1734333848270,0.7511,3973.0,3972.5,3.55]
[1734333848605,0.7511,3973.0,3972.6,3.0]
[1734333849308,19.88769456,3973.1,3972.5,0.55]
[1734333849691,19.88769456,3973.1,3973.0,2.51698]
[1734333849873,19.88769456,3973.1,3973.0,5.51698]
[1734333850073,19.88769456,3973.1,3972.7,3.31673]
[1734333850335,19.88769456,3973.1,3972.8,3.0]
[1734333850469,19.88769456,3973.1,3972.9,3.0]
[1734333850821,19.88769456,3973.1,3972.5,0.55]
[1734333851198,19.88769456,3973.1,3972.9,2.51704]
[1734333851431,19.88769456,3973.1,3973.0,3.0]
[1734333851610,19.88769456,3973.1,3972.7,2.51714]
[1734333851813,19.88769456,3973.1,3972.7,3.55]
[1734333852012,19.88769456,3973.1,3972.5,0.55]
[1734333852013,19.88769456,3973.1,3972.9,3.0]
[1734333852251,20.69379456,3973.1,3972.9,3.0]
[1734333852426,20.69379456,3973.1,3972.2,0.55]
[1734333852651,20.69379456,3973.1,3972.3,2.51743]
[1734333852849,19.88769456,3973.1,3972.9,3.0]
[1734333853049,19.88769456,3973.1,3972.9,5.51699]
[1734333853827,19.88769456,3973.1,3973.0,5.51698]
[1734333854932,19.88769456,3973.1,3973.0,6.06698]
[1734333856530,19.88769456,3973.1,3973.0,5.51698]
[1734333857655,19.88769456,3973.1,3972.8,3.55]
[1734333857870,19.88769456,3973.1,3972.4,3.0]
[1734333857871,19.88769456,3973.1,3972.4,1.85532194]
[1734333858080,19.88769456,3973.1,3972.5,4.74379032]
[1734333858246,19.88769456,3973.1,3972.5,0.55]
[1734333858732,19.88769456,3973.1,3972.9,3.0]
[1734333859968,19.88769456,3973.1,3972.7,3.0]
[1734333860283,19.88769456,3973.1,3972.1,2.51751]
[1734333860284,0.7871,3973.0,3972.1,2.51751]
[1734333861373,0.7871,3973.0,3972.2,2.51745]
[1734333861691,0.7871,3973.0,3972.3,3.0]
[1734333861889,0.7871,3973.0,3971.9,1.04362194]
[1734333862044,0.7871,3973.0,3972.4,3.0]
[1734333864109,19.88769456,3973.1,3972.4,3.8167]
[1734333864253,19.88769456,3973.1,3972.9,2.51701]
[1734333865557,19.88769456,3973.1,3973.0,3.0]
[1734333866106,19.88769456,3973.1,3972.7,2.51717]
[1734333866285,19.88769456,3973.1,3972.8,3.0]
[1734333868904,19.88769456,3973.1,3973.0,3.0]
[1734333870590,19.88769456,3973.1,3972.9,3.0]
[1734333870986,19.88769456,3973.1,3972.7,3.0]
[1734333871821,0.8182,3973.0,3972.1,2.51755]
[1734333872207,0.8182,3973.0,3971.7,1.04362194]
[1734333872208,0.8182,3973.0,3971.8,2.51771]
[1734333872401,0.8182,3973.0,3971.6,1.85152194]
[1734333872611,0.8182,3973.0,3972.0,2.51757]
[1734333872928,0.8182,3973.0,3972.0,2.51759]
[1734333873125,0.8182,3972.8,3971.6,1.04362194]
[1734333873287,0.8182,3972.8,3971.3,2.51803]
[1734333873288,0.8182,3972.8,3971.8,2.51773]
[1734333874828,0.8182,3972.8,3971.9,3.0]
[1734333875025,0.8182,3972.8,3971.4,4.04362194]
[1734333875231,0.8182,3972.8,3971.5,1.19514924]
[1734333875543,0.8182,3972.8,3971.4,4.04362194]
[1734333875544,0.8182,3972.8,3971.9,2.51767]
[1734333875746,0.7982,3972.6,3971.9,2.51767]
[1734333877345,0.7982,3972.6,3972.0,2.5176]
[1734333877548,0.7982,3972.6,3971.8,2.51769]
[1734333877894,0.7982,3972.6,3971.9,3.0]
[1734333878797,0.7982,3972.6,3971.8,2.51769]
[1734333878798,0.7982,3972.6,3971.4,2.51799]
[1734333879000,4.98946657,3972.7,3971.5,3.0]
[1734333879001,0.821,3972.4,3971.5,3.0]
[1734333880327,0.8007,3972.2,3971.3,3.0]
[1734333880630,0.8007,3972.2,3971.3,2.51806]
[1734333880823,0.8007,3972.2,3971.4,3.0]
[1734333881943,0.79161189,3972.2,3971.4,3.0]
[1734333882152,0.350839,3972.2,3971.4,3.0]
[1734333883049,0.350839,3972.2,3971.1,1.04362194]
[1734333883050,2.13801142,3971.9,3971.1,3.0]
[1734333883350,2.13801142,3971.9,3970.7,0.30247737]
[1734333883351,2.13801142,3971.9,3970.7,1.04362194]
[1734333883535,2.13801142,3971.9,3970.8,2.51837]
[1734333884745,0.758,3971.8,3970.9,3.0]
[1734333885856,0.758,3971.8,3970.4,4.04362194]
[1734333886055,0.758,3971.8,3970.8,3.0]
[1734333886254,0.7579,3971.6,3970.8,3.0]
[1734333886766,0.7579,3971.6,3970.6,3.0]
[1734333887569,0.7579,3971.4,3970.6,3.0]
[1734333888627,0.7579,3971.4,3970.6,2.5185]
[1734333888834,0.7579,3971.4,3970.7,3.0]
[1734333889562,0.7579,3971.4,3970.6,2.5185]
[1734333890775,0.7579,3971.4,3970.7,2.51843]
[1734333891158,0.7579,3971.4,3970.8,0.02223975]
[1734333894368,0.7579,3971.4,3971.2,2.5181]
[1734333894569,0.7579,3971.4,3971.3,0.02198872]
[1734333894759,0.7579,3971.4,3971.2,2.5181]
[1734333894954,0.7579,3971.4,3971.3,0.02198872]
[1734333895166,0.7903,3971.7,3971.5,2.5179]
[1734333895477,0.7903,3971.7,3971.6,0.02194689]
[1734333895868,0.7903,3971.7,3971.5,2.5179]
[1734333897984,0.7903,3971.7,3970.9,3.0]
[1734333898199,0.7903,3971.7,3971.6,2.51787]
[1734333900006,2.13801142,3972.3,3971.6,2.51787]
[1734333900314,0.8177,3972.2,3971.6,2.51787]
[1734333900911,0.8177,3972.2,3971.4,2.51798]
[1734333901280,0.8177,3972.2,3971.5,3.0]
[1734333902110,0.8177,3972.2,3971.4,2.51798]
[1734333904785,0.8177,3972.2,3971.3,3.0]
[1734333905115,0.8177,3972.2,3970.7,3.8093]
[1734333905116,0.7534,3971.8,3970.7,3.8093]
[1734333905318,0.7534,3971.8,3970.7,6.32773]
[1734333905518,0.7534,3971.8,3970.7,2.51843]
[1734333905519,2.51775,3971.8,3970.7,2.51843]
[1734333905718,0.7554,3971.7,3970.7,2.51843]
[1734333906018,0.7554,3971.7,3970.4,0.30247737]
[1734333906321,0.7554,3971.7,3970.8,2.51835]
[1734333906518,1.29650314,3971.7,3970.8,2.51835]
[1734333908308,1.29650314,3971.7,3970.4,3.30247737]
[1734333908309,0.7572,3971.6,3970.6,3.0]
[1734333909426,0.7572,3971.5,3970.3,3.28419]
[1734333909584,0.7572,3971.5,3970.4,2.51862]
[1734333909920,0.7572,3971.5,3970.5,3.0]
[1734333910603,0.7769,3971.4,3970.5,3.0]
[1734333910802,0.7769,3971.4,3970.3,3.0]
[1734333911003,2.51827,3971.0,3969.9,0.30247737]
[1734333911202,0.7566,3970.7,3969.6,0.39309666]
[1734333911704,0.7566,3970.7,3969.7,2.51908]
[1734333912529,0.7566,3970.7,3969.8,3.0]
[1734333912730,1.084092,3970.7,3969.8,3.0]
[1734333913097,0.7566,3970.7,3969.5,1.324]
[1734333913303,0.54110314,3971.7,3970.2,0.774]
[1734333913304,0.8057,3971.7,3970.2,0.774]
[1734333913536,0.8057,3971.7,3971.1,2.51816]
[1734333913736,0.8057,3971.7,3971.2,2.51806]
[1734333914138,0.4986936,3972.3,3971.1,1.509]
[1734333914355,0.7531,3972.5,3971.1,1.509]
[1734333914356,0.7531,3972.5,3971.3,0.8006]
[1734333914541,0.7531,3972.5,3971.7,3.0]
[1734333914714,0.7531,3972.5,3972.1,2.51754]
[1734333915215,19.88769456,3973.1,3972.2,3.26994]
[1734333915533,2.06454946,3973.0,3972.2,0.7525]
[1734333915924,2.06454946,3973.0,3972.4,2.51736]
[1734333916643,19.88769456,3973.1,3972.2,0.7525]
[1734333916849,19.88769456,3973.1,3972.7,2.51717]
[1734333918249,19.88769456,3973.1,3972.2,3.26994]
[1734333918250,19.88769456,3973.1,3973.0,2.51698]
[1734333919368,19.98597796,3973.1,3973.0,2.51698]
[1734333920466,19.98597796,3973.1,3972.7,2.51711]
[1734333920776,19.98597796,3973.1,3972.4,0.55]
[1734333920982,19.98597796,3973.1,3972.9,3.0]
[1734333921676,19.98597796,3973.1,3972.5,3.0]
[1734333921880,19.98597796,3973.1,3972.7,3.0]
[1734333922283,19.98597796,3973.1,3973.0,2.51698]
[1734333922999,19.98597796,3973.1,3972.8,3.0]
[1734333923484,19.98597796,3973.1,3972.3,2.51743]
[1734333923683,19.98597796,3973.1,3972.5,3.0]
[1734333924264,0.7903,3973.0,3972.4,3.0]
[1734333925391,0.8885834,3973.0,3972.4,3.0]
[1734333925594,0.8885834,3973.0,3972.3,3.0]
[1734333928306,0.8885834,3973.0,3972.1,3.0]
[1734333929380,0.8885834,3973.0,3972.2,3.0]
[1734333929582,0.8885834,3973.0,3971.6,0.8323]
[1734333929583,0.8885834,3973.0,3972.4,2.51735]
[1734333929783,0.8885834,3973.0,3971.6,0.8323]
[1734333929784,0.8885834,3973.0,3972.5,2.51729]
[1734333932213,0.0982834,3973.0,3972.6,0.04213108]
[1734333932512,0.0982834,3973.0,3972.8,2.51706]
[1734333932881,0.0982834,3973.0,3972.9,0.0417062]
[1734333933299,0.0982834,3973.0,3972.8,2.51706]
[1734333933699,0.0982834,3973.0,3972.9,0.04166586]
[1734333934012,0.0982834,3973.0,3972.6,2.51723]
[1734333934213,0.0982834,3973.0,3972.8,2.51708]
[1734333934403,0.0982834,3973.0,3972.9,0.04166586]
[1734333934603,0.0982834,3973.0,3972.8,2.51708]
[1734333934781,0.0982834,3973.0,3972.9,0.04166586]
[1734333934978,0.0982834,3973.0,3972.8,2.51708]
[1734333935185,0.0982834,3973.0,3972.9,0.04172885]
[1734333935408,0.0982834,3973.0,3972.8,2.51708]
[1734333935715,0.0982834,3973.0,3972.9,0.04172279]
[1734333936013,0.0982834,3973.0,3972.6,2.51723]
[1734333936310,0.7582,3972.9,3972.7,0.04175174]
[1734333936510,0.0982834,3973.0,3972.7,0.04175174]
[1734333936677,0.0982834,3973.0,3972.6,0.7503]
[1734333936877,0.0982834,3973.0,3972.8,3.0]
[1734333937287,0.0982834,3973.0,3972.9,0.04031096]
[1734333937718,0.0982834,3973.0,3972.8,3.0]
[1734333937917,0.0982834,3973.0,3972.9,0.04027062]
[1734333938279,0.0982834,3973.0,3972.6,3.0]
[1734333938485,0.0982834,3973.0,3972.9,0.04033361]
[1734333938726,0.0982834,3973.0,3972.6,3.0]
[1734333939205,0.0982834,3973.0,3972.7,0.0403565]
[1734333939404,0.0982834,3973.0,3972.6,3.0]
[1734333939610,0.0982834,3973.0,3972.7,0.04029956]
[1734333939783,0.0982834,3973.0,3972.6,3.0]
[1734333939986,0.0982834,3973.0,3972.7,2.55746956]
[1734333941214,0.0982834,3973.0,3972.7,0.04029956]
[1734333941403,0.0982834,3973.0,3972.5,2.5173]
[1734333941606,0.0982834,3973.0,3972.6,3.0402731]
[1734333941797,0.0982834,3973.0,3972.6,0.0402731]
[1734333941996,0.0982834,3973.0,3972.3,0.7503]
[1734333941997,0.0982834,3973.0,3972.8,2.51705]
[1734333942193,0.0982834,3973.0,3972.9,0.04027002]
[1734333942500,0.0982834,3973.0,3972.9,2.51705]
[1734333942704,0.0982834,3973.0,3972.9,2.55732002]
[1734333943437,2.9071812,3973.0,3972.9,0.04027002]
[1734333943724,2.9071812,3973.0,3972.6,3.0]
[1734333944015,0.9085834,3973.0,3972.6,3.0]
[1734333944223,0.9085834,3973.0,3972.7,0.04019089]
[1734333944446,0.9085834,3973.0,3972.3,0.7503]
[1734333944630,0.9085834,3973.0,3972.7,2.51716]
[1734333944785,0.0982834,3973.0,3972.8,0.04017642]
[1734333945418,0.0982834,3973.0,3972.9,2.51705]
[1734333945581,0.0982834,3973.0,3972.9,6.34491195]
[1734333946786,0.0982834,3973.0,3972.9,3.34491195]
[1734333949821,0.0982834,3973.0,3972.9,3.89491195]
[1734333953368,0.0982834,3973.0,3972.9,6.89491195]
[1734333958541,0.0982834,3973.0,3972.9,8.08936218]
[1734333959642,0.0982834,3973.0,3972.9,9.1363756]
[1734333960384,0.0982834,3973.0,3972.9,8.5863756]
[1734333960585,0.0982834,3973.0,3972.9,7.7986756]
[1734333960945,0.0982834,3973.0,3972.9,1.23536918]
[1734333964850,0.0982834,3973.0,3972.9,0.04016195]
[1734333965050,0.0982834,3973.0,3972.8,5.51709]
[1734333965251,2.1723112,3973.0,3972.9,0.0389511]
[1734333965454,2.1723112,3973.0,3972.4,1.04625642]
[1734333965678,0.8021,3972.9,3972.5,0.03913919]
[1734333966449,0.98456977,3972.8,3972.5,0.03913919]
[1734333966645,1.08285317,3972.8,3972.0,1.04625642]
[1734333966845,0.98456977,3972.5,3972.1,0.03919188]
[1734333967246,0.98456977,3972.5,3972.0,2.51761]
[1734333967447,0.98456977,3972.5,3972.1,0.03939505]
[1734333967779,0.8626834,3972.7,3972.1,0.03939505]
[1734333968080,0.8626834,3972.7,3972.1,3.03939505]
[1734333969706,0.8076,3972.1,3971.8,0.26251047]
[1734333969884,3.32528,3971.9,3971.8,0.26251047]
[1734333970051,2.51782,3971.7,3970.5,0.7597]
[1734333970250,0.98456977,3971.1,3970.9,0.26256505]
[1734333970594,0.7691,3971.0,3970.9,0.26256505]
[1734333973995,0.7691,3971.0,3970.2,0.8004]
[1734333976363,0.7691,3971.0,3970.2,3.8004]
[1734333976964,0.7691,3971.0,3970.2,0.8004]
[1734333977194,1.097824,3971.0,3970.2,0.8004]
[1734333977386,1.097824,3971.0,3970.3,0.03029837]
[1734333977703,1.097824,3971.0,3970.0,3.0]
[1734333977905,1.097824,3971.0,3970.4,0.03028388]
[1734333978071,1.097824,3971.0,3970.0,3.0]
[1734333978272,1.097824,3971.0,3970.5,0.03026939]
[1734333978507,1.097824,3971.0,3970.2,3.0]
[1734333979109,1.097824,3971.0,3970.3,0.03032963]
[1734333980611,0.7691,3971.0,3970.3,0.03032963]
[1734333984885,0.7691,3971.0,3970.1,3.0]
[1734333985496,0.7691,3971.0,3970.2,0.03113125]
[1734333988498,0.7691,3971.0,3970.0,3.0]
[1734333988685,0.7691,3971.0,3970.3,0.03122099]
[1734333988882,0.29051883,3970.9,3970.0,3.0]
[1734333989084,0.29051883,3970.9,3970.1,0.03124997]
[1734333989902,0.29051883,3970.9,3970.1,3.03124997]
[1734333990301,0.29051883,3970.9,3970.1,5.55005997]
[1734333990721,0.29051883,3970.9,3970.1,3.03124997]
[1734333990925,0.31957071,3970.8,3970.1,0.03124997]
[1734333991133,0.7653,3970.7,3970.1,0.03124997]
[1734333997302,0.7653,3970.7,3970.2,3.0]
[1734333997517,0.7653,3970.7,3970.2,3.03150128]
[1734333998452,2.5178,3971.8,3970.2,3.03150128]
[1734333998453,0.8132,3971.5,3970.4,0.7867]
[1734333998655,0.8132,3971.5,3971.1,2.51815]
[1734333998967,0.8132,3971.5,3971.2,3.03133557]
[1734333999254,0.8132,3971.5,3971.2,0.03133557]
[1734333999617,0.8132,3971.5,3971.0,3.0]
[1734333999811,0.8132,3971.5,3971.3,0.03132109]
[1734334000010,0.8132,3971.5,3971.0,3.0]
[1734334000251,0.8132,3971.5,3971.4,0.0313066]
[1734334000452,0.8132,3971.5,3971.0,3.0]
[1734334000616,0.8132,3971.5,3971.4,0.0313066]
[1734334001155,0.8132,3971.5,3971.0,3.0]
[1734334001454,0.8132,3971.5,3971.4,0.0313066]
[1734334001910,0.8132,3971.5,3971.0,3.0]
[1734334002115,0.8132,3971.5,3971.4,0.0310304]
[1734334002361,0.8132,3971.5,3971.0,3.0]
[1734334002513,0.98598844,3972.0,3971.0,3.0]
[1734334002514,0.7997,3972.0,3971.4,0.0310304]
[1734334002712,0.7997,3972.0,3971.1,0.8298]
[1734334002713,1.131428,3972.0,3971.1,3.8298]
[1734334002938,1.131428,3972.0,3971.5,0.03101592]
[1734334003139,1.131428,3972.0,3971.1,3.8298]
[1734334003313,1.131428,3972.0,3971.6,0.03100144]
[1734334003514,1.131428,3972.0,3971.1,3.8298]
[1734334003713,1.131428,3972.0,3971.7,0.03098696]
[1734334003917,0.46349964,3971.9,3971.1,3.8298]
[1734334004154,0.46349964,3971.9,3971.8,0.03097249]
[1734334004467,0.46349964,3971.9,3971.1,3.0]
[1734334004859,0.7997,3972.0,3971.2,0.03105937]
[1734334005062,0.7997,3972.0,3971.3,0.8038]
[1734334005423,0.7997,3972.0,3971.5,2.51794]
[1734334005765,0.7997,3972.0,3971.6,3.0]
[1734334005966,0.7997,3972.0,3971.6,3.03075131]
[1734334006969,0.7997,3972.0,3971.6,0.03075131]
[1734334007142,0.97826884,3972.0,3971.6,0.03075131]
[1734334007346,0.97826884,3972.0,3971.4,3.0]
[1734334007656,0.97826884,3972.0,3971.7,0.03059093]
[1734334007859,0.97826884,3972.0,3971.4,3.0]
[1734334008053,0.97826884,3972.0,3971.8,0.03057645]
[1734334008252,0.97826884,3972.0,3971.4,3.0]
[1734334008452,0.97826884,3972.0,3971.9,0.03056197]
[1734334008644,0.97826884,3972.0,3971.4,3.0]
[1734334008839,0.97826884,3972.0,3971.9,0.03056197]
[1734334009045,0.97826884,3972.0,3971.4,3.0]
[1734334009230,0.97826884,3972.0,3971.9,0.03056197]
[1734334009425,0.97826884,3972.0,3971.4,3.0]
[1734334009630,0.7997,3972.0,3971.9,0.03056197]
[1734334009825,0.7997,3972.0,3971.2,3.0]
[1734334010366,0.7997,3972.0,3971.3,0.03064885]
[1734334010566,0.7997,3972.0,3971.0,3.8211]
[1734334010767,0.7997,3972.0,3971.4,0.03063437]
[1734334010971,0.7997,3972.0,3971.0,3.8211]
[1734334010972,0.7997,3972.0,3971.0,4.86735642]
[1734334011169,0.7997,3972.0,3971.5,0.03061989]
[1734334011574,0.7997,3972.0,3971.4,3.0]
[1734334011776,0.97826884,3972.0,3971.6,0.03060541]
[1734334012076,0.7935,3971.8,3970.9,3.0]
[1734334012274,0.7935,3971.8,3971.7,0.03059093]
[1734334012436,0.7935,3971.8,3971.0,3.86674055]
[1734334012437,0.7935,3971.8,3971.0,3.0]
[1734334012975,0.7935,3971.8,3971.1,3.03067782]
[1734334015185,0.7935,3971.8,3971.2,0.86737678]
[1734334015387,0.7935,3971.8,3971.2,0.89804012]
[1734334015647,0.7935,3971.8,3971.2,0.03066334]
[1734334018273,1.24106973,3971.8,3970.8,6.56460642]
[1734334018477,1.24106973,3971.8,3971.3,0.02979108]
[1734334018783,1.24106973,3971.8,3971.4,0.0297766]
[1734334018973,1.24106973,3971.8,3970.9,3.0]
[1734334019180,1.24106973,3971.8,3971.5,0.02976212]
[1734334019373,0.4923267,3971.7,3970.9,3.0]